Workbook

Sheet MENU-Prog
B1: MENU PRINCIPAL Coffrage BOIS | F1: M. Cupani ver. 2022
C6: Tableaux des Bois de Coffrage
C8: CALCUL Portée Maxi RAIDISSEUR
C10: CALCUL Hauteur de RAIDISSEUR
C12: CALCUL ESPACEMENT APPUI CONTRE-PLAQUE
C14: CALCUL EPAISSEUR CONTRE-PLAQUE
C16: Calcul de la pression du béton frais
C18: Vérification Stabilité Banches aux Vents
C20: Vérification Stabilité Vent INVERSE
C22: Calcul Tiges de Serrage
C24: RESISTANCE A LA FLEXION Lamellé Collé EC5
C26: Tableaux Lamellé Collé EC5

Sheet Tableau-Bois
C2: TABLEAUX BOIS TRADITIONNEL
A4: Module de Young (Mpa) E =→ | C4: 10,000Mpa
A6: Flèche Limite (mm) → 1 sur | C6: 300e
B8: Coefficient des cas de charges | G8: =CONCATENATE("Charges uniformément réparties de ",H14," kN/m à ",W14," kN/m") -> Charges uniformément réparties de 2 kN/m à 32 kN/m
B9: Multiple cas Chrg= | D9: 2
G10: =CONCATENATE("Avec une flèche de 1/",C6,"e et Un Module E = ",C4," Mpa") -> Avec une flèche de 1/300e et Un Module E = 10000 Mpa
AL12: Forces | AM12: =B15 -> Madrier | AQ12: Bastings | AU12: Chevrons | BA12: fleche | BB12: Mod: E | BC12: Contrainte | BD12: Base | BE12: Hauteur | BF12: Multiple
C13: Section | D13: I | E13: I/V | F13: b | G13: h | H13: Charges uniformément réparties en kN/m | AM13: =C15 -> 10,5 x 22,5 | AN13: =C16 -> 7,5 x 22,5 | AO13: =C17 -> 7,5 x 20,5 | AQ13: =C18 -> 6,5 x 18,5 | AR13: =C19 -> 6,5 x 16,5 | AS13: =C20 -> 5,5 x 15,5 | AU13: =C21 -> 7,5 x 10,5 | AV13: =C22 -> 7,5 x 7,5 | AW13: =C23 -> 6,5 x 7,5 | AX13: =C24 -> 5,5 x 7,5 | AY13: =C25 -> 5,5 x 6,5 | BA13: 200 | BB13: 6000 | BC13: 7 | BD13: 55 | BE13: 65 | BF13: 0.5
C14: cm2 | D14: cm4 | E14: cm3 | F14: cm | G14: cm | H14: =1*$D$9 -> 2.0kN | I14: =2*$D$9 -> 4.0kN | J14: =3*$D$9 -> 6.0kN | K14: =4*$D$9 -> 8.0kN | L14: =5*$D$9 -> 10.0kN | M14: =6*$D$9 -> 12.0kN | N14: =7*$D$9 -> 14.0kN | O14: =8*$D$9 -> 16.0kN | P14: =9*$D$9 -> 18.0kN | Q14: =10*$D$9 -> 20.0kN | R14: =11*$D$9 -> 22.0kN | S14: =12*$D$9 -> 24.0kN | T14: =13*$D$9 -> 26.0kN | U14: =14*$D$9 -> 28.0kN | V14: =15*$D$9 -> 30.0kN | W14: =16*$D$9 -> 32.0kN | AL14: 0.0kN | AM14: 0 | AN14: 0 | AO14: 0 | AQ14: 0 | AR14: 0 | AS14: 0 | AU14: 0 | AV14: 0 | AW14: 0 | AX14: 0 | AY14: 0 | BA14: 250 | BB14: 7000 | BC14: 8 | BD14: 65 | BE14: 75 | BF14: 1
B15: Madrier | C15: =CONCATENATE(F15," x ",G15) -> 10,5 x 22,5 | D15: =(F15*G15^3)/12 -> 9,967cm4 | E15: =(F15*G15^2)/6 -> 886cm3 | F15: 10.5cm | G15: 22.5cm | H15: =((384*$C$4*D15*10^(-8))/5/$C$6/$H$14/(10^(-3)))^(1/3) -> 5.03m | I15: =((384*$C$4*D15*10^(-8))/5/$C$6/$I$14/(10^(-3)))^(1/3) -> 4.00m | J15: =((384*$C$4*$D15*10^(-8))/5/$C$6/J$14/(10^(-3)))^(1/3) -> 3.49m | K15: 3.17m | L15: 2.94m | M15: 2.77m | N15: 2.63m | O15: 2.52m | P15: 2.42m | Q15: 2.34m | R15: 2.26m | S15: 2.20m | T15: 2.14m | U15: 2.09m | V15: 2.04m | W15: 2.00m | AL15: =1*$D$9 -> 2.0kN | AM15: =((384*$C$4*$D$15*10^(-8))/(($C$6)*5*AL15*10^-3))^(1/3) -> 5.034m | AN15: =((384*$C$4*$D$16*10^(-8))/(($C$6)*5*AL15*10^-3))^(1/3) -> 4.500m | AO15: =((384*$C$4*$D$17*10^(-8))/(($C$6)*5*AL15*10^-3))^(1/3) -> 4.100m | AQ15: =((384*$C$4*$D$18*10^(-8))/(($C$6)*5*AL15*10^-3))^(1/3) -> 3.528m | AR15: =((384*$C$4*$D$19*10^(-8))/(($C$6)*5*AL15*10^-3))^(1/3) -> 3.146m | AS15: =((384*$C$4*$D$20*10^(-8))/(($C$6)*5*AL15*10^-3))^(1/3) -> 2.796m | AU15: =((384*$C$4*$D$21*10^(-8))/(($C$6)*5*AL15*10^-3))^(1/3) -> 2.100m | AV15: =((384*$C$4*$D$22*10^(-8))/(($C$6)*5*AL15*10^-3))^(1/3) -> 1.500m | AW15: =((384*$C$4*$D$23*10^(-8))/(($C$6)*5*AL15*10^-3))^(1/3) -> 1.430m | AX15: =((384*$C$4*$D$24*10^(-8))/(($C$6)*5*AL15*10^-3))^(1/3) -> 1.353m | AY15: =((384*$C$4*$D$25*10^(-8))/(($C$6)*5*AL15*10^-3))^(1/3) -> 1.172m | BA15: 300 | BB15: 8000 | BC15: 9 | BD15: 75 | BE15: 105 | BF15: 1.5
C16: =CONCATENATE(F16," x ",G16) -> 7,5 x 22,5 | D16: =(F16*G16^3)/12 -> 7,119cm4 | E16: =(F16*G16^2)/6 -> 633cm3 | F16: 7.5cm | G16: 22.5cm | H16: 4.50m | I16: 3.57m | J16: 3.12m | K16: 2.83m | L16: 2.63m | M16: 2.48m | N16: 2.35m | O16: 2.25m | P16: 2.16m | Q16: 2.09m | R16: 2.02m | S16: 1.97m | T16: 1.91m | U16: 1.87m | V16: 1.82m | W16: 1.79m | AL16: =2*$D$9 -> 4.0kN | AM16: =((384*$C$4*$D$15*10^(-8))/(($C$6)*5*AL16*10^-3))^(1/3) -> 3.996m | AN16: =((384*$C$4*$D$16*10^(-8))/(($C$6)*5*AL16*10^-3))^(1/3) -> 3.572m | AO16: =((384*$C$4*$D$17*10^(-8))/(($C$6)*5*AL16*10^-3))^(1/3) -> 3.254m | AQ16: =((384*$C$4*$D$18*10^(-8))/(($C$6)*5*AL16*10^-3))^(1/3) -> 2.800m | AR16: =((384*$C$4*$D$19*10^(-8))/(($C$6)*5*AL16*10^-3))^(1/3) -> 2.497m | AS16: =((384*$C$4*$D$20*10^(-8))/(($C$6)*5*AL16*10^-3))^(1/3) -> 2.219m | AU16: =((384*$C$4*$D$21*10^(-8))/(($C$6)*5*AL16*10^-3))^(1/3) -> 1.667m | AV16: =((384*$C$4*$D$22*10^(-8))/(($C$6)*5*AL16*10^-3))^(1/3) -> 1.191m | AW16: =((384*$C$4*$D$23*10^(-8))/(($C$6)*5*AL16*10^-3))^(1/3) -> 1.135m | AX16: =((384*$C$4*$D$24*10^(-8))/(($C$6)*5*AL16*10^-3))^(1/3) -> 1.074m | AY16: =((384*$C$4*$D$25*10^(-8))/(($C$6)*5*AL16*10^-3))^(1/3) -> 0.930m | BA16: 350 | BB16: 9000 | BC16: 10 | BD16: 105 | BE16: 155 | BF16: 2
C17: 7,5 x 20,5 | D17: 5,384cm4 | E17: 525cm3 | F17: 7.5cm | G17: 20.5cm | H17: 4.10m | I17: 3.25m | J17: 2.84m | K17: 2.58m | L17: 2.40m | M17: 2.26m | N17: 2.14m | O17: 2.05m | P17: 1.97m | Q17: 1.90m | R17: 1.84m | S17: 1.79m | T17: 1.74m | U17: 1.70m | V17: 1.66m | W17: 1.63m | AL17: =3*$D$9 -> 6.0kN | AM17: =((384*$C$4*$D$15*10^(-8))/(($C$6)*5*AL17*10^-3))^(1/3) -> 3.490m | AN17: =((384*$C$4*$D$16*10^(-8))/(($C$6)*5*AL17*10^-3))^(1/3) -> 3.120m | AO17: =((384*$C$4*$D$17*10^(-8))/(($C$6)*5*AL17*10^-3))^(1/3) -> 2.843m | AQ17: 2.446m | AR17: 2.182m | AS17: 1.938m | AU17: 1.456m | AV17: 1.040m | AW17: 0.992m | AX17: 0.938m | AY17: 0.813m | BA17: 400 | BB17: 10000 | BC17: 11 | BE17: 165 | BF17: 2.5
B18: Bastings | C18: 6,5 x 18,5 | D18: 3,430cm4 | E18: 371cm3 | F18: 6.5cm | G18: 18.5cm | H18: 3.53m | I18: 2.80m | J18: 2.45m | K18: 2.22m | L18: 2.06m | M18: 1.94m | N18: 1.84m | O18: 1.76m | P18: 1.70m | Q18: 1.64m | R18: 1.59m | S18: 1.54m | T18: 1.50m | U18: 1.46m | V18: 1.43m | W18: 1.40m | AL18: =4*$D$9 -> 8.0kN | AM18: 3.171m | AN18: 2.835m | AO18: 2.583m | AQ18: 2.222m | AR18: 1.982m | AS18: 1.761m | AU18: 1.323m | AV18: 0.945m | AW18: 0.901m | AX18: 0.852m | AY18: 0.739m | BA18: 450 | BB18: 11000 | BC18: 12 | BE18: 185 | BF18: 3
C19: 6,5 x 16,5 | D19: 2,433cm4 | E19: 295cm3 | F19: 6.5cm | G19: 16.5cm | H19: 3.15m | I19: 2.50m | J19: 2.18m | K19: 1.98m | L19: 1.84m | M19: 1.73m | N19: 1.64m | O19: 1.57m | P19: 1.51m | Q19: 1.46m | R19: 1.41m | S19: 1.37m | T19: 1.34m | U19: 1.31m | V19: 1.28m | W19: 1.25m | AL19: =5*$D$9 -> 10.0kN | AM19: 2.944m | AN19: 2.632m | AO19: 2.398m | AQ19: 2.063m | AR19: 1.840m | AS19: 1.635m | AU19: 1.228m | AV19: 0.877m | AW19: 0.836m | AX19: 0.791m | AY19: 0.686m | BA19: 500 | BB19: 12000 | BC19: 13 | BE19: 205
C20: 5,5 x 15,5 | D20: 1,707cm4 | E20: 220cm3 | F20: 5.5cm | G20: 15.5cm | H20: 2.80m | I20: 2.22m | J20: 1.94m | K20: 1.76m | L20: 1.63m | M20: 1.54m | N20: 1.46m | O20: 1.40m | P20: 1.34m | Q20: 1.30m | R20: 1.26m | S20: 1.22m | T20: 1.19m | U20: 1.16m | V20: 1.13m | W20: 1.11m | AL20: =6*$D$9 -> 12.0kN | AM20: 2.770m | AN20: 2.476m | AO20: 2.256m | AQ20: 1.941m | AR20: 1.731m | AS20: 1.538m | AU20: 1.156m | AV20: 0.825m | AW20: 0.787m | AX20: 0.744m | AY20: 0.645m | BA20: 750 | BB20: 13000 | BC20: 14 | BE20: 225
B21: Chevrons | C21: 7,5 x 10,5 | D21: 724cm4 | E21: 138cm3 | F21: 7.5cm | G21: 10.5cm | H21: 2.10m | I21: 1.67m | J21: 1.46m | K21: 1.32m | L21: 1.23m | M21: 1.16m | N21: 1.10m | O21: 1.05m | P21: 1.01m | Q21: 0.97m | R21: 0.94m | S21: 0.92m | T21: 0.89m | U21: 0.87m | V21: 0.85m | W21: 0.83m | AL21: =7*$D$9 -> 14.0kN | AM21: 2.632m | AN21: 2.352m | AO21: 2.143m | AQ21: 1.844m | AR21: 1.645m | AS21: 1.461m | AU21: 1.098m | AV21: 0.784m | AW21: 0.748m | AX21: 0.707m | AY21: 0.613m | BA21: 1000 | BB21: 14000 | BC21: 15
C22: 7,5 x 7,5 | D22: 264cm4 | E22: 70cm3 | F22: 7.5cm | G22: 7.5cm | H22: 1.50m | I22: 1.19m | J22: 1.04m | K22: 0.94m | L22: 0.88m | M22: 0.83m | N22: 0.78m | O22: 0.75m | P22: 0.72m | Q22: 0.70m | R22: 0.67m | S22: 0.66m | T22: 0.64m | U22: 0.62m | V22: 0.61m | W22: 0.60m | AL22: =8*$D$9 -> 16.0kN | AM22: 2.517m | AN22: 2.250m | AO22: 2.050m | AQ22: 1.764m | AR22: 1.573m | AS22: 1.398m | AU22: 1.050m | AV22: 0.750m | AW22: 0.715m | AX22: 0.676m | AY22: 0.586m
C23: 6,5 x 7,5 | D23: 229cm4 | E23: 61cm3 | F23: 6.5cm | G23: 7.5cm | H23: 1.43m | I23: 1.14m | J23: 0.99m | K23: 0.90m | L23: 0.84m | M23: 0.79m | N23: 0.75m | O23: 0.72m | P23: 0.69m | Q23: 0.66m | R23: 0.64m | S23: 0.62m | T23: 0.61m | U23: 0.59m | V23: 0.58m | W23: 0.57m | AL23: =9*$D$9 -> 18.0kN | AM23: 2.420m | AN23: 2.163m | AO23: 1.971m | AQ23: 1.696m | AR23: 1.513m | AS23: 1.344m | AU23: 1.010m | AV23: 0.721m | AW23: 0.688m | AX23: 0.650m | AY23: 0.564m
C24: 5,5 x 7,5 | D24: 193cm4 | E24: 52cm3 | F24: 5.5cm | G24: 7.5cm | H24: 1.35m | I24: 1.07m | J24: 0.94m | K24: 0.85m | L24: 0.79m | M24: 0.74m | N24: 0.71m | O24: 0.68m | P24: 0.65m | Q24: 0.63m | R24: 0.61m | S24: 0.59m | T24: 0.58m | U24: 0.56m | V24: 0.55m | W24: 0.54m | AL24: =10*$D$9 -> 20.0kN | AM24: 2.337m | AN24: 2.089m | AO24: 1.903m | AQ24: 1.637m | AR24: 1.460m | AS24: 1.298m | AU24: 0.975m | AV24: 0.696m | AW24: 0.664m | AX24: 0.628m | AY24: 0.544m
C25: 5,5 x 6,5 | D25: 126cm4 | E25: 39cm3 | F25: 5.5cm | G25: 6.5cm | H25: 1.17m | I25: 0.93m | J25: 0.81m | K25: 0.74m | L25: 0.69m | M25: 0.65m | N25: 0.61m | O25: 0.59m | P25: 0.56m | Q25: 0.54m | R25: 0.53m | S25: 0.51m | T25: 0.50m | U25: 0.49m | V25: 0.48m | W25: 0.47m | AL25: =11*$D$9 -> 22.0kN | AM25: 2.264m | AN25: 2.023m | AO25: 1.844m | AQ25: 1.586m | AR25: 1.415m | AS25: 1.257m | AU25: 0.944m | AV25: 0.674m | AW25: 0.643m | AX25: 0.608m | AY25: 0.527m
AL26: =12*$D$9 -> 24.0kN | AM26: 2.199m | AN26: 1.966m | AO26: 1.791m | AQ26: 1.541m | AR26: 1.374m | AS26: 1.221m | AU26: 0.917m | AV26: 0.655m | AW26: 0.625m | AX26: 0.591m | AY26: 0.512m
AL27: =13*$D$9 -> 26.0kN | AM27: 2.141m | AN27: 1.914m | AO27: 1.744m | AQ27: 1.500m | AR27: 1.338m | AS27: 1.189m | AU27: 0.893m | AV27: 0.638m | AW27: 0.608m | AX27: 0.575m | AY27: 0.499m
AL28: =14*$D$9 -> 28.0kN | AM28: 2.089m | AN28: 1.867m | AO28: 1.701m | AQ28: 1.464m | AR28: 1.305m | AS28: 1.160m | AU28: 0.871m | AV28: 0.622m | AW28: 0.593m | AX28: 0.561m | AY28: 0.486m
AL29: =15*$D$9 -> 30.0kN | AM29: 2.041m | AN29: 1.825m | AO29: 1.662m | AQ29: 1.430m | AR29: 1.276m | AS29: 1.134m | AU29: 0.852m | AV29: 0.608m | AW29: 0.580m | AX29: 0.548m | AY29: 0.475m
AL30: =16*$D$9 -> 32.0kN | AM30: 1.998m | AN30: 1.786m | AO30: 1.627m | AQ30: 1.400m | AR30: 1.249m | AS30: 1.109m | AU30: 0.833m | AV30: 0.595m | AW30: 0.568m | AX30: 0.537m | AY30: 0.465m

Sheet Portée-Raidisseur
C2: CALCUL Portée Maxi RAIDISSEUR
A4: Module de Young (Mpa) E =→ | C4: 10,000Mpa
A5: Contrainte limite bois (en Mpa )→ | C5: 10Mpa
A8: (G) Charges permanentes → | C8: 1.00kN/m | L8: ←Résultats
A9: uniquement poids propre Coffrage | L9: ←Données
A10: (Q) Charges Exploitations → | C10: 15.00kN/m
A11: Poids du Béton frais + exploitation | AL11: Appuis: | AM11: fleche | AN11: Mod: E | AO11: Contrainte | AP11: Base | AQ11: Hauteur | AR11: Multiple
A12: Flèche Limite (mm) → 1 sur | C12: 300e | AL12: 2 appuis | AM12: 200 | AN12: 6000 | AO12: 7 | AP12: 55 | AQ12: 65 | AR12: 0.5
A13: =C22/C12 -> flèche Limite =2.86mm | AL13: 3 appuis | AM13: 250 | AN13: 7000 | AO13: 8 | AP13: 65 | AQ13: 75 | AR13: 1
AL14: 4 appuis | AM14: 300 | AN14: 8000 | AO14: 9 | AP14: 75 | AQ14: 105 | AR14: 1.5
A15: (Ps) Charges ELS (G+Q) ----→ | C15: =C8+C10 -> 16.0kN/m | F15: Nombre d'appuis → | H15: 2 | AL15: +5 appuis | AM15: 350 | AN15: 9000 | AO15: 10 | AP15: 105 | AQ15: 155 | AR15: 2
AM16: 400 | AN16: 10000 | AO16: 11 | AQ16: 165 | AR16: 2.5
A17: (Pu) Charges ELU (1,35G+1,5Q) → | C17: =(1.35*C8)+(1.5*C10) -> 23.9kN/m | F17: =(($B$20/10)*($B$21/10)^3)/12 -> 1,706.8cm4 | AM17: 450 | AN17: 11000 | AO17: 12 | AQ17: 185 | AR17: 3
F18: Espacement (min1) = | H18: =(((C4*F17*10^-8)/G25/C15/C12/10^-3)^(1/3))*1000 -> 1,892mm | AM18: 500 | AN18: 12000 | AO18: 13 | AQ18: 205
A19: RESULTATS | AM19: 750 | AN19: 13000 | AO19: 14 | AQ19: 225
A20: Base (mm) → | B20: 55mm | F20: =(($B$20/10)*(B21/10)^2)/6 -> 220.2cm3 | AM20: 1000 | AN20: 14000 | AO20: 15
A21: Haut (mm) → | B21: 155mm | F21: Espacement (min2) = | H21: =(((C5*F20*10^-6)/(C17*(10^-3)*$G$23))^(0.5))*1000 -> 859mm
C22: =MIN(H18,H21) -> 859mm
B23: PORTEE = | C23: =C22/1000 -> 0.859m | F23: Coef (Mf)= | G23: =IF($H$15=1,0.125,IF($H$15=2,0.125,IF($H$15=3,0.1,0.11))) -> 0.125 | L23: Coefficient des cas de charges | Q23: =CONCATENATE("Charges uniformément réparties de ",P27," kN/m à ",AE27," kN/m") -> Charges uniformément réparties de 1 kN/m à 16 kN/m
L24: Multiple cas Chrg= | N24: 1 | Q24: =CONCATENATE("Avec une flèche de 1/",C12,"e et Un Module E = ",C4," Mpa") -> Avec une flèche de 1/300e et Un Module E = 10000 Mpa
F25: Coef flèche | G25: =IF($H$15=1,0.013,IF($H$15=2,0.00525,IF($H$15=3,0.00678,0.00654))) -> 0.00525
K26: Section | L26: I | M26: I/V | N26: b | O26: h | P26: Charges uniformément réparties en kN/m
K27: cm2 | L27: cm4 | M27: cm3 | N27: cm | O27: cm | P27: =1*$N$24 -> 1.00 | Q27: =2*$N$24 -> 2.00 | R27: =3*$N$24 -> 3.00 | S27: =4*$N$24 -> 4.00 | T27: =5*$N$24 -> 5.00 | U27: =6*$N$24 -> 6.00 | V27: =7*$N$24 -> 7.00 | W27: =8*$N$24 -> 8.00 | X27: =9*$N$24 -> 9.00 | Y27: =10*$N$24 -> 10.00 | Z27: =11*$N$24 -> 11.00 | AA27: =12*$N$24 -> 12.00 | AB27: =13*$N$24 -> 13.00 | AC27: =14*$N$24 -> 14.00 | AD27: =15*$N$24 -> 15.00 | AE27: =16*$N$24 -> 16.00
J28: Madrier | K28: =CONCATENATE(N28," x ",O28) -> 10,5 x 22,5 | L28: =(N28*O28^3)/12 -> 9,967cm4 | M28: =(N28*O28^2)/6 -> 886cm3 | N28: 10.5cm | O28: 22.5cm | P28: =((384*$C$4*L28*10^(-8))/5/$C$12/$P$27/(10^(-3)))^(1/3) -> 6.34m | Q28: =((384*$C$4*L28*10^(-8))/5/$C$12/$Q$27/(10^(-3)))^(1/3) -> 5.03m | R28: =((384*$C$4*$L28*10^(-8))/5/$C$12/R$27/(10^(-3)))^(1/3) -> 4.40m | S28: 4.00m | T28: 3.71m | U28: 3.49m | V28: 3.32m | W28: 3.17m | X28: 3.05m | Y28: 2.94m | Z28: 2.85m | AA28: 2.77m | AB28: 2.70m | AC28: 2.63m | AD28: 2.57m | AE28: 2.52m
K29: =CONCATENATE(N29," x ",O29) -> 7,5 x 22,5 | L29: =(N29*O29^3)/12 -> 7,119cm4 | M29: =(N29*O29^2)/6 -> 633cm3 | N29: 7.5cm | O29: 22.5cm | P29: 5.67m | Q29: 4.50m | R29: 3.93m | S29: 3.57m | T29: 3.32m | U29: 3.12m | V29: 2.96m | W29: 2.83m | X29: 2.73m | Y29: 2.63m | Z29: 2.55m | AA29: 2.48m | AB29: 2.41m | AC29: 2.35m | AD29: 2.30m | AE29: 2.25m
K30: 7,5 x 20,5 | L30: 5,384cm4 | M30: 525cm3 | N30: 7.5cm | O30: 20.5cm | P30: 5.17m | Q30: 4.10m | R30: 3.58m | S30: 3.25m | T30: 3.02m | U30: 2.84m | V30: 2.70m | W30: 2.58m | X30: 2.48m | Y30: 2.40m | Z30: 2.32m | AA30: 2.26m | AB30: 2.20m | AC30: 2.14m | AD30: 2.09m | AE30: 2.05m
J31: Bastings | K31: 6,5 x 18,5 | L31: 3,430cm4 | M31: 371cm3 | N31: 6.5cm | O31: 18.5cm | P31: 4.44m | Q31: 3.53m | R31: 3.08m | S31: 2.80m | T31: 2.60m | U31: 2.45m | V31: 2.32m | W31: 2.22m | X31: 2.14m | Y31: 2.06m | Z31: 2.00m | AA31: 1.94m | AB31: 1.89m | AC31: 1.84m | AD31: 1.80m | AE31: 1.76m
K32: 6,5 x 16,5 | L32: 2,433cm4 | M32: 295cm3 | N32: 6.5cm | O32: 16.5cm | P32: 3.96m | Q32: 3.15m | R32: 2.75m | S32: 2.50m | T32: 2.32m | U32: 2.18m | V32: 2.07m | W32: 1.98m | X32: 1.91m | Y32: 1.84m | Z32: 1.78m | AA32: 1.73m | AB32: 1.69m | AC32: 1.64m | AD32: 1.61m | AE32: 1.57m
K33: 5,5 x 15,5 | L33: 1,707cm4 | M33: 220cm3 | N33: 5.5cm | O33: 15.5cm | P33: 3.52m | Q33: 2.80m | R33: 2.44m | S33: 2.22m | T33: 2.06m | U33: 1.94m | V33: 1.84m | W33: 1.76m | X33: 1.69m | Y33: 1.63m | Z33: 1.58m | AA33: 1.54m | AB33: 1.50m | AC33: 1.46m | AD33: 1.43m | AE33: 1.40m
J34: Chevrons | K34: 7,5 x 10,5 | L34: 724cm4 | M34: 138cm3 | N34: 7.5cm | O34: 10.5cm | P34: 2.65m | Q34: 2.10m | R34: 1.83m | S34: 1.67m | T34: 1.55m | U34: 1.46m | V34: 1.38m | W34: 1.32m | X34: 1.27m | Y34: 1.23m | Z34: 1.19m | AA34: 1.16m | AB34: 1.13m | AC34: 1.10m | AD34: 1.07m | AE34: 1.05m
K35: 7,5 x 7,5 | L35: 264cm4 | M35: 70cm3 | N35: 7.5cm | O35: 7.5cm | P35: 1.89m | Q35: 1.50m | R35: 1.31m | S35: 1.19m | T35: 1.11m | U35: 1.04m | V35: 0.99m | W35: 0.94m | X35: 0.91m | Y35: 0.88m | Z35: 0.85m | AA35: 0.83m | AB35: 0.80m | AC35: 0.78m | AD35: 0.77m | AE35: 0.75m
K36: 6,5 x 7,5 | L36: 229cm4 | M36: 61cm3 | N36: 6.5cm | O36: 7.5cm | P36: 1.80m | Q36: 1.43m | R36: 1.25m | S36: 1.14m | T36: 1.05m | U36: 0.99m | V36: 0.94m | W36: 0.90m | X36: 0.87m | Y36: 0.84m | Z36: 0.81m | AA36: 0.79m | AB36: 0.77m | AC36: 0.75m | AD36: 0.73m | AE36: 0.72m
K37: 5,5 x 7,5 | L37: 193cm4 | M37: 52cm3 | N37: 5.5cm | O37: 7.5cm | P37: 1.70m | Q37: 1.35m | R37: 1.18m | S37: 1.07m | T37: 1.00m | U37: 0.94m | V37: 0.89m | W37: 0.85m | X37: 0.82m | Y37: 0.79m | Z37: 0.77m | AA37: 0.74m | AB37: 0.72m | AC37: 0.71m | AD37: 0.69m | AE37: 0.68m
K38: 5,5 x 6,5 | L38: 126cm4 | M38: 39cm3 | N38: 5.5cm | O38: 6.5cm | P38: 1.48m | Q38: 1.17m | R38: 1.02m | S38: 0.93m | T38: 0.86m | U38: 0.81m | V38: 0.77m | W38: 0.74m | X38: 0.71m | Y38: 0.69m | Z38: 0.66m | AA38: 0.65m | AB38: 0.63m | AC38: 0.61m | AD38: 0.60m | AE38: 0.59m

Sheet Hauteur-Raidisseur
C2: CALCUL DIMENSION Hauteur RAIDISSEUR
A4: Module de Young (Mpa) E =→ | C4: 10,000Mpa
A5: Contrainte limite bois (en Mpa )→ | C5: 10Mpa
A8: (G) Charges permanentes → | C8: 1.00kN/m | L8: ←Résultats
A9: uniquement poids propre Coffrage | L9: ←Valeurs modifiables
A10: (Q) Charges Exploitations → | C10: 15.00kN/m
A11: Poids du Béton frais + exploitation | AJ11: Appuis: | AK11: fleche | AL11: Mod: E | AM11: Contrainte | AN11: Base | AO11: Multiple
A12: Flèche Limite (mm) → 1 sur | C12: 300e | AJ12: 2 appuis | AK12: 200 | AL12: 6000 | AM12: 7 | AN12: 55 | AO12: 0.5
A13: =(E14/C12)*1000 -> flèche Limite =2.87mm | AJ13: 3 appuis | AK13: 250 | AL13: 7000 | AM13: 8 | AN13: 65 | AO13: 1
E14: 0.86m | AJ14: 4 appuis | AK14: 300 | AL14: 8000 | AM14: 9 | AN14: 75 | AO14: 1.5
A15: (Ps) Charges ELS (G+Q) ----→ | C15: =C8+C10 -> 16.0kN/m | F15: Nombre d'appuis → | H15: 1 | AJ15: +5 appuis | AK15: 350 | AL15: 9000 | AM15: 10 | AN15: 105 | AO15: 2
AK16: 400 | AL16: 10000 | AM16: 11 | AN16: 155 | AO16: 2.5
A17: (Pu) Charges ELU (1,35G+1,5Q) → | C17: =(1.35*C8)+(1.5*C10) -> 23.9kN/m | F17: =(($B$20/10)*($B$21/10)^3)/12 -> 1,464.2cm4 | AK17: 450 | AL17: 11000 | AM17: 12 | AN17: 165 | AO17: 3
F18: Haut (min1) = | G18: =(((12/(B20/10))*((((C12*G25*((E14)^3)*C15/1000)/C4)*10^8)))^(1/3))*10 -> 86mm | AK18: 500 | AL18: 12000 | AM18: 13 | AN18: 185
A19: RESULTATS | AK19: 750 | AL19: 13000 | AM19: 14 | AN19: 205
A20: Base (mm) → | B20: 75mm | F20: =(($B$20/10)*(B21/10)^2)/6 -> 220.5cm3 | AK20: 1000 | AL20: 14000 | AM20: 15 | AN20: 225
A21: Haut (mm) → | B21: =MAX(G21,G18) -> 133mm | F21: Haut (min2) = | G21: =(((6*G23*C17*((E14)^2)*1000)/($B$20/10)/C5)^0.5)*10 -> 133mm
L22: Coefficient des cas de charges | P22: =CONCATENATE("Charges uniformément réparties de ",P27," kN/m à ",AE27," kN/m") -> Charges uniformément réparties de 1 kN/m à 16 kN/m
A23: Hauteur | B23: =B21/1000 -> h= 0.133m | F23: Coef (Mf)= | G23: =IF($H$15=1,0.125,IF($H$15=2,0.125,IF($H$15=3,0.1,0.11))) -> 0.125 | L23: Multiple cas Chrg= | N23: 1 | P23: =CONCATENATE("Avec une flèche de 1/",C12,"e et Un Module E = ",C4," Mpa") -> Avec une flèche de 1/300e et Un Module E = 10000 Mpa
A24: Poutre
F25: Coef flèche | G25: =IF($H$15=1,0.013,IF($H$15=2,0.00525,IF($H$15=3,0.00678,0.00654))) -> 0.01300
K26: Section | L26: I | M26: I/V | N26: b | O26: h | P26: Charges uniformément réparties en kN/m
K27: cm2 | L27: cm4 | M27: cm3 | N27: cm | O27: cm | P27: =1*$N$23 -> 1.00 | Q27: =2*$N$23 -> 2.00 | R27: =3*$N$23 -> 3.00 | S27: =4*$N$23 -> 4.00 | T27: =5*$N$23 -> 5.00 | U27: =6*$N$23 -> 6.00 | V27: =7*$N$23 -> 7.00 | W27: =8*$N$23 -> 8.00 | X27: =9*$N$23 -> 9.00 | Y27: =10*$N$23 -> 10.00 | Z27: =11*$N$23 -> 11.00 | AA27: =12*$N$23 -> 12.00 | AB27: =13*$N$23 -> 13.00 | AC27: =14*$N$23 -> 14.00 | AD27: =15*$N$23 -> 15.00 | AE27: =16*$N$23 -> 16.00
J28: Madrier | K28: =CONCATENATE(N28," x ",O28) -> 10,5 x 22,5 | L28: =(N28*O28^3)/12 -> 9,967cm4 | M28: =(N28*O28^2)/6 -> 886cm3 | N28: 10.5cm | O28: 22.5cm | P28: =((384*$C$4*L28*10^(-8))/5/$C$12/$P$27/(10^(-3)))^(1/3) -> 6.34m | Q28: =((384*$C$4*L28*10^(-8))/5/$C$12/$Q$27/(10^(-3)))^(1/3) -> 5.03m | R28: =((384*$C$4*$L28*10^(-8))/5/$C$12/R$27/(10^(-3)))^(1/3) -> 4.40m | S28: 4.00m | T28: 3.71m | U28: 3.49m | V28: 3.32m | W28: 3.17m | X28: 3.05m | Y28: 2.94m | Z28: 2.85m | AA28: 2.77m | AB28: 2.70m | AC28: 2.63m | AD28: 2.57m | AE28: 2.52m
K29: =CONCATENATE(N29," x ",O29) -> 7,5 x 22,5 | L29: =(N29*O29^3)/12 -> 7,119cm4 | M29: =(N29*O29^2)/6 -> 633cm3 | N29: 7.5cm | O29: 22.5cm | P29: 5.67m | Q29: 4.50m | R29: 3.93m | S29: 3.57m | T29: 3.32m | U29: 3.12m | V29: 2.96m | W29: 2.83m | X29: 2.73m | Y29: 2.63m | Z29: 2.55m | AA29: 2.48m | AB29: 2.41m | AC29: 2.35m | AD29: 2.30m | AE29: 2.25m
K30: 7,5 x 20,5 | L30: 5,384cm4 | M30: 525cm3 | N30: 7.5cm | O30: 20.5cm | P30: 5.17m | Q30: 4.10m | R30: 3.58m | S30: 3.25m | T30: 3.02m | U30: 2.84m | V30: 2.70m | W30: 2.58m | X30: 2.48m | Y30: 2.40m | Z30: 2.32m | AA30: 2.26m | AB30: 2.20m | AC30: 2.14m | AD30: 2.09m | AE30: 2.05m
J31: Bastings | K31: 6,5 x 18,5 | L31: 3,430cm4 | M31: 371cm3 | N31: 6.5cm | O31: 18.5cm | P31: 4.44m | Q31: 3.53m | R31: 3.08m | S31: 2.80m | T31: 2.60m | U31: 2.45m | V31: 2.32m | W31: 2.22m | X31: 2.14m | Y31: 2.06m | Z31: 2.00m | AA31: 1.94m | AB31: 1.89m | AC31: 1.84m | AD31: 1.80m | AE31: 1.76m
K32: 6,5 x 16,5 | L32: 2,433cm4 | M32: 295cm3 | N32: 6.5cm | O32: 16.5cm | P32: 3.96m | Q32: 3.15m | R32: 2.75m | S32: 2.50m | T32: 2.32m | U32: 2.18m | V32: 2.07m | W32: 1.98m | X32: 1.91m | Y32: 1.84m | Z32: 1.78m | AA32: 1.73m | AB32: 1.69m | AC32: 1.64m | AD32: 1.61m | AE32: 1.57m
K33: 5,5 x 15,5 | L33: 1,707cm4 | M33: 220cm3 | N33: 5.5cm | O33: 15.5cm | P33: 3.52m | Q33: 2.80m | R33: 2.44m | S33: 2.22m | T33: 2.06m | U33: 1.94m | V33: 1.84m | W33: 1.76m | X33: 1.69m | Y33: 1.63m | Z33: 1.58m | AA33: 1.54m | AB33: 1.50m | AC33: 1.46m | AD33: 1.43m | AE33: 1.40m
J34: Chevrons | K34: 7,5 x 10,5 | L34: 724cm4 | M34: 138cm3 | N34: 7.5cm | O34: 10.5cm | P34: 2.65m | Q34: 2.10m | R34: 1.83m | S34: 1.67m | T34: 1.55m | U34: 1.46m | V34: 1.38m | W34: 1.32m | X34: 1.27m | Y34: 1.23m | Z34: 1.19m | AA34: 1.16m | AB34: 1.13m | AC34: 1.10m | AD34: 1.07m | AE34: 1.05m
K35: 7,5 x 7,5 | L35: 264cm4 | M35: 70cm3 | N35: 7.5cm | O35: 7.5cm | P35: 1.89m | Q35: 1.50m | R35: 1.31m | S35: 1.19m | T35: 1.11m | U35: 1.04m | V35: 0.99m | W35: 0.94m | X35: 0.91m | Y35: 0.88m | Z35: 0.85m | AA35: 0.83m | AB35: 0.80m | AC35: 0.78m | AD35: 0.77m | AE35: 0.75m
K36: 6,5 x 7,5 | L36: 229cm4 | M36: 61cm3 | N36: 6.5cm | O36: 7.5cm | P36: 1.80m | Q36: 1.43m | R36: 1.25m | S36: 1.14m | T36: 1.05m | U36: 0.99m | V36: 0.94m | W36: 0.90m | X36: 0.87m | Y36: 0.84m | Z36: 0.81m | AA36: 0.79m | AB36: 0.77m | AC36: 0.75m | AD36: 0.73m | AE36: 0.72m
K37: 5,5 x 7,5 | L37: 193cm4 | M37: 52cm3 | N37: 5.5cm | O37: 7.5cm | P37: 1.70m | Q37: 1.35m | R37: 1.18m | S37: 1.07m | T37: 1.00m | U37: 0.94m | V37: 0.89m | W37: 0.85m | X37: 0.82m | Y37: 0.79m | Z37: 0.77m | AA37: 0.74m | AB37: 0.72m | AC37: 0.71m | AD37: 0.69m | AE37: 0.68m
K38: 5,5 x 6,5 | L38: 126cm4 | M38: 39cm3 | N38: 5.5cm | O38: 6.5cm | P38: 1.48m | Q38: 1.17m | R38: 1.02m | S38: 0.93m | T38: 0.86m | U38: 0.81m | V38: 0.77m | W38: 0.74m | X38: 0.71m | Y38: 0.69m | Z38: 0.66m | AA38: 0.65m | AB38: 0.63m | AC38: 0.61m | AD38: 0.60m | AE38: 0.59m

Sheet Espace-Contre-Plaque
C2: CALCUL ESPACEMENT APPUI CONTRE-PLAQUE
A4: Module de Young (Mpa) E =→ | C4: 10,000Mpa | F4: ←Résultats
A5: Contrainte limite bois (en Mpa )→ | C5: 10Mpa | F5: ←Valeurs modifiables
A8: (G) Charges permanentes → | C8: 0.8kN/m
A9: uniquement Poids propre Coffrage
A10: (Q) Charges Exploitations → | C10: 7.0kN/m
A11: Suracharges Explotations
A12: (Q2) Charges Béton → | C12: =C14*25 -> 12.5kN/m
A13: uniquement Poids propre Béton | X13: NB appuis | Y13: fleche | Z13: Mod: E | AA13: Contrainte | AB13: epaisseur
A14: Epaisseur béton (en m )→ | C14: 0.50m | X14: 2 appuis | Y14: 200 | Z14: 6000 | AA14: 7 | AB14: 5
X15: 3 appuis | Y15: 250 | Z15: 7000 | AA15: 8 | AB15: 7
A16: Flèche Limite (mm) → 1 sur | C16: 200e | X16: 4 appuis | Y16: 300 | Z16: 8000 | AA16: 9 | AB16: 10
A17: =G19/C16 -> flèche Limite =1.57mm | X17: +5 appuis | Y17: 350 | Z17: 9000 | AA17: 10 | AB17: 12
A18: Epaisseur conte plaqué (mm) → | C18: 15mm | Y18: 400 | Z18: 10000 | AA18: 11 | AB18: 15
G19: =MIN(I23,I25) -> 315mm | Y19: 450 | Z19: 11000 | AA19: 12 | AB19: 18
A20: (Ps) Charges ELS (G+Q+Q2) → | C20: =C8+C10+C12 -> 20.3kN/m | Y20: 500 | Z20: 12000 | AA20: 13 | AB20: 20
G21: Nombre d'appuis → | I21: 2 | Y21: 750 | Z21: 13000 | AA21: 14 | AB21: 21
A22: (Pu) Charges ELU (1,35G+1,5(Q+Q2)) → | C22: =(1.35*C8)+(1.5*(C10+C12)) -> 30.3kN/m | F22: =(100*(C18/10)^3)/12 -> 28.1cm4 | Y22: 1000 | Z22: 14000 | AA22: 15
H23: L(min1) = | I23: =((C5*F25)/C22/10^-3/K29)^0.5 -> 315mm
B24: RESULTATS
B25: =G19 -> 315mm = Entre-Axe | F25: =(100*(C18/10)^2)/6 -> 37.5cm3 | H25: L(min2) = | I25: =(((C4*F22*10^-8)/K31/C20/C16)^(1/3))*10000 -> 509mm
J29: Coef (Mf)= | K29: =IF($I$21=1,0.125,IF($I$21=2,0.125,IF($I$21=3,0.1,0.11))) -> 0.125 | X29: 2
J31: Coef flèche | K31: =IF($I$21=1,0.013,IF($I$21=2,0.00525,IF($I$21=3,0.00678,0.00654))) -> 0.00525

Sheet Epaisseur-Contre-Plaque
C2: CALCUL EPAISSEUR CONTRE-PLAQUE | N2: ←Résultats
N3: ←Valeurs modifiables
A4: Module de Young (Mpa) E =→ | C4: 10,000Mpa
A5: Contrainte limite bois (en Mpa )→ | C5: 9Mpa
A8: (G) Charges permanentes → | C8: 0.8kN/m
A9: uniquement Poids propre Coffrage
A10: (Q) Charges Exploitations → | C10: 7kN/m
A11: Suracharges Explotations
A12: (Q2) Charges Béton → | C12: =C15*25 -> 17.5kN/m
A13: uniquement Poids propre Béton
Y14: Appuis: | Z14: fleche | AA14: Mod: E | AB14: Contrainte | AC14: epaisseur
A15: Hauteur béton (en m )→ | C15: 0.70m | Y15: 2 appuis | Z15: 200 | AA15: 6000 | AB15: 7 | AC15: 5
Y16: 3 appuis | Z16: 250 | AA16: 7000 | AB16: 8 | AC16: 7
A17: Flèche Limite (mm) → 1 sur | C17: 300e | H17: 315mm | Y17: 4 appuis | Z17: 300 | AA17: 8000 | AB17: 9 | AC17: 10
A18: =H17/C17 -> flèche Limite =1.05mm | Y18: +5 appuis | Z18: 350 | AA18: 9000 | AB18: 10 | AC18: 12
A19: Epaisseur conte plaqué (mm) → | C19: =MAX(I23,I26) -> 18mm | G19: Nombre d'appuis → | I19: 2 | Z19: 400 | AA19: 10000 | AB19: 11 | AC19: 15
Z20: 450 | AA20: 11000 | AB20: 12 | AC20: 18
A21: (Ps) Charges ELS (G+Q+Q2) → | C21: =C8+C10+C12 -> 25.3kN/m | Z21: 500 | AA21: 12000 | AB21: 13 | AC21: 20
Z22: 750 | AA22: 13000 | AB22: 14 | AC22: 21
A23: Chrg ELU (1,35G+1,5(Q+Q2)) → | C23: =(1.35*C8)+(1.5*(C10+C12)) -> 37.8kN/m | F23: =(100*(C19/10)^3)/12 -> 46.1cm4 | H23: Ep (min1) = | I23: =(((6*K30*C23*((H17/1000)^2)*1000)/100/C5)^0.5)*10 -> 18mm | Z23: 1000 | AA23: 14000 | AB23: 15
A25: RESULTATS
A26: =C19 -> 18mm | B26: = Epaisseur | F26: =(100*(C19/10)^2)/6 -> 52.1cm3 | H26: Ep (min2) = | I26: =((12*C17*K32*C21*((H17/1000)^3))/100/10^-8/C4)^(1/3) -> 11mm | K26: Aide
J30: Coef (Mf)= | K30: =IF($I$19=1,0.125,IF($I$19=2,0.125,IF($I$19=3,0.1,0.11))) -> 0.125
J32: Coef flèche | K32: =IF($I$19=1,0.013,IF($I$19=2,0.00525,IF($I$19=3,0.00678,0.00654))) -> 0.00525

Sheet Poussée-Béton-frais
B1: Calcul de la pression du béton frais
D3: hauteur de bétonnage h = | E3: 6.00m
D5: Surface de Coffrage m² = | E5: 100.00m²
D7: Epaisseur du Mur ep = | E7: =AE9 -> 400
AD8: ep Mur | AG8: CIRIA
D9: Volume béton = | E9: =E5*$AE$9/1000 -> 40.00m3 | AD9: 4 | AE9: =INDEX(K20:K24,AD9) -> 400 | AG9: Pour Murs
AG10: Pour Poteaux
D11: Temps de bétonnage: = | E11: 3.00h | AD11: vites: arr | AE11: vites: arr
AD12: =ROUNDUP($E$13*2,0)/2 -> 2 | AE12: =(MATCH($AD$12,L19:X19,1)) -> 3 | AG12: béton normal
D13: Vitesse de montée du béton = | E13: =E3/E11 -> 2.00m/h | K13: Effet de la Hauteur du Béton P1 | AD13: V de P3 | AE13: =(MATCH($AD$12,O28:X28,1)) -> 3 | AG13: béton avec retardateur
K14: H(m) | L14: 1 | N14: 2 | O14: 3 | P14: 4 | Q14: 5 | R14: 6
D15: affaissement au cône Aff = | E15: 75mm | K15: p1 (kN/m²) | L15: =L14*25 -> 25 | N15: 50 | O15: 75 | P15: 100 | Q15: 125 | R15: 150
AD16: Temp | AE16: =MATCH($E$17,L29:L32) -> 3
D17: Température = | E17: 15°C | K17: Effet de Voûte P2
K18: e(mm) | L18: V(m/h)
D19: Densité béton = | E19: 25kN/m3 | L19: 1 | N19: 2 | O19: 3 | P19: 4 | Q19: 5 | R19: 6 | S19: 8 | T19: 10 | U19: 15 | V19: 20 | W19: 30 | X19: 40
K20: 150mm | L20: 35 | N20: 35 | O20: 40 | P20: 45 | Q20: 45 | R20: 50 | S20: 55 | T20: 60 | U20: 75 | V20: 90 | W20: 120 | X20: 150
B21: Pression du béton | K21: 200mm | L21: 40 | N21: 40 | O21: 45 | P21: 50 | Q21: 50 | R21: 55 | S21: 60 | T21: 65 | U21: 80 | V21: 95 | W21: 125 | X21: 150
B22: P1 : hauteur de levée de bétonnage | E22: =ROUNDUP((E3*E19),0) -> 150.0kN/m² | K22: 300mm | L22: 50 | N22: 50 | O22: 55 | P22: 60 | Q22: 60 | R22: 65 | S22: 70 | T22: 75 | U22: 90 | V22: 105 | W22: 135 | X22: 150
B23: P2 : effet de voute | E23: =INDEX(L20:X24,AD9,AE12) -> 60.0kN/m² | J23: =IF(E28=E22,"Triangle ",E28/E19) -> 2.40m | K23: 400mm | L23: 60 | N23: 60 | O23: 65 | P23: 70 | Q23: 70 | R23: 75 | S23: 80 | T23: 85 | U23: 100 | V23: 115 | W23: 145 | X23: 150 | AD23: =INDEX($O$29:$X$32,$AE$16,$AE$13) -> 55
B24: P3 : effet de durcissement du béton | E24: =IF($E$15=50,AD23,IF($E$15=75,AD24,AD25)) -> 65.0kN/m² | K24: 500mm | L24: 70 | N24: 70 | O24: 75 | P24: 80 | Q24: 80 | R24: 85 | S24: 90 | T24: 95 | U24: 110 | V24: 125 | W24: 150 | X24: 150 | AD24: =INDEX($O$33:$X$36,$AE$16,$AE$13) -> 65
AD25: =INDEX($O$37:$X$40,$AE$16,$AE$13) -> 75
K26: Effet de durcissement P3
H27: Données | K27: Affaissement (mm) | L27: Température du béton (°C) | O27: V(m/h)
B28: Pression Retenue Mini(P1,P2,P3) = | E28: =MIN(E22:E24) -> 60.0kN/m² | H28: Résultats | O28: 1 | P28: 1.5 | Q28: 2 | R28: 2.5 | S28: 3 | T28: 4 | U28: 5 | V28: 6 | W28: 7 | X28: >=8 | AD28: =IF($I$82>2,"NON",IF(AND($I$82<2,$I$80<6),(2+1.25*$I$82),IF(AND($I$82<2,$I$80=15),(2+1*$I$82),(2+0.85*$I$82)))) -> 3.70kN/m²
B29: Méthode du Manuel CIB-FIP-CEB | K29: 50mm | L29: 5°C | O29: 50 | P29: 70 | Q29: 95 | R29: 115 | S29: 135 | T29: 150 | U29: 150 | V29: 150 | W29: 150 | X29: 150 | AD29: =IF($I$82<2,"NON",IF(AND($I$82>2,$I$80<15),(4.1+0.2*$I$82),IF(AND($I$82>2,$I$80=15),(3.6+0.2*$I$82),(3.3+0.2*$I$82)))) -> 3.70tonne/m²
L30: 10°C | O30: 40 | P30: 55 | Q30: 70 | R30: 85 | S30: 100 | T30: 135 | U30: 150 | V30: 150 | W30: 150 | X30: 150
D31: Méthode CIRIA-report 108 | E31: =$I$54 -> 57.0kN/m² | L31: 15°C | O31: 40 | P31: 45 | Q31: 55 | R31: 65 | S31: 75 | T31: 100 | U31: 125 | V31: 150 | W31: 150 | X31: 150
L32: 20°C | O32: 35 | P32: 40 | Q32: 45 | R32: 50 | S32: 55 | T32: 70 | U32: 90 | V32: 105 | W32: 125 | X32: 150
D33: Méthode DE RODIN | E33: =$R$56 -> 49.1kN/m² | K33: 75mm | L33: 5°C | O33: 60 | P33: 85 | Q33: 110 | R33: 140 | S33: 150 | T33: 150 | U33: 150 | V33: 150 | W33: 150 | X33: 150
H34: Comparatif avec 4 Méthodes | L34: 10°C | O34: 50 | P34: 65 | Q34: 85 | R34: 105 | S34: 125 | T34: 150 | U34: 150 | V34: 150 | W34: 150 | X34: 150
D35: Méthode ITPBTP | E35: =$E$84 -> 37.0kN/m² | L35: 15°C | O35: 40 | P35: 50 | Q35: 65 | R35: 80 | S35: 95 | T35: 125 | U35: 150 | V35: 150 | W35: 150 | X35: 150
L36: 20°C | O36: 35 | P36: 40 | Q36: 50 | R36: 60 | S36: 70 | T36: 90 | U36: 115 | V36: 135 | W36: 150 | X36: 150
D37: Méthode DIN 18218 | E37: =$W$84 -> 42.5kN/m² | K37: 100 à 150 | L37: 5°C | O37: 70 | P37: 100 | Q37: 130 | R37: 150 | S37: 150 | T37: 150 | U37: 150 | V37: 150 | W37: 150 | X37: 150
L38: 10°C | O38: 55 | P38: 75 | Q38: 100 | R38: 120 | S38: 150 | T38: 150 | U38: 150 | V38: 150 | W38: 150 | X38: 150
L39: 15°C | O39: 45 | P39: 60 | Q39: 75 | R39: 90 | S39: 110 | T39: 150 | U39: 150 | V39: 150 | W39: 150 | X39: 150
L40: 20°C | O40: 35 | P40: 45 | Q40: 55 | R40: 70 | S40: 80 | T40: 110 | U40: 130 | V40: 150 | W40: 150 | X40: 150
B44: Compartif avec une autre méthode CIRIA-report 108 | N44: Compartif avec une autre méthode RODIN
C45: Données
C46: Hauteur = | D46: =$E$3 -> 6.00m | N46: Méthode DE RODIN
C47: Température = | D47: =$E$17 -> 15.0°C
C48: Densité béton = | D48: =$E$19 -> 25kN/m3 | J48: Avec Pmax (imposée) = | K48: 55.0kN/m² | O48: Données
C49: Vitesse V = | D49: =$E$13 -> 2.00m/h | J49: Vitesse V (proposée) = | K49: =(((2*K48/D48)-(I60*I64*((I60^2)*(I64^2)+(4*(D46-(K48/D48))))^0.5)-((I60^2)*(I64^2)))/(2*I56))^2 -> 1.76m/h | O49: Hauteur = | Q49: =$E$3 -> 6.00m
O50: Température = | Q50: =$E$17 -> 15.0°C
H51: Vous pouvez vérifier votre vitesse de coulage | O51: Densité béton = | Q51: =$E$19 -> 25kN/m3
H52: Avec une pression Pmax (imposée) | O52: Vitesse V = | Q52: =$E$13 -> 2.00m/h
H54: Pmax = | I54: =D48*((I56*(D49)^0.5)+(I60*I64*((D46-(I56*(D49)^0.5))^0.5))) -> 57.0kN/m²
H56: Coeff C1 = | I56: =IF(H57=1,1,1.6) -> 1.0 | N56: Pmax = 39 x V^(1/3) = | R56: =39*E13^(1/3) -> 49.1kN/m²
H57: 1
N58: Hmax = 1,625 x V^(1/3) = | R58: =1.625*E13^(1/3) -> Hm= 2.05m
H60: Coeff C2 = | I60: =IF(H61=1,0.3,0.45) -> 0.3 | N60: Avec V vitesse d’ascension du béton dans le coffrage (en m/h)
H61: 1
O62: P max = 3.9 V 1/3
O63: Hm = 1.625 V 1/3
H64: K= | I64: =(36/(D47+16))^2 -> 1.348595213
H66: Exemple: | O66: Exemple:
C70: Méthode ITPBTP | O70: Méthode DIN 18218 | W70: Avec Pmax (imposée) = | X70: 80.0kN/m²
W71: Vitesse V (proposée) = | X71: =((2.08*$X$70)/$Q$75/$U$80/$S$82)-1.54 -> 5.12m/h
C72: (Institut Technique Professionnel du Bâtiment et de Travaux Publics) | O72: Données
O73: Hauteur = | Q73: =$E$3 -> 6.00m
C74: V vitesse d’ascension du béton dans le coffrage (en m/h) | O74: Température = | Q74: =$E$17 -> 15.0°C | T74: Vous pouvez vérifier la vitesse de coulage
C75: A et B coefficients dépendants température q du béton (en °C) et de V. | O75: Densité béton = | Q75: =$E$19 -> 25kN/m3
C76: Pmax = A + (B x V) | O76: Vitesse V = | Q76: =$E$13 -> 2.00m/h
T77: Coefficient de l'adjuvant
C78: Tableau donnant les valeurs de A + B V | H78: Données | T78: C2 = 0,065xTv + 1
C79: q | D79: V< 2 m/h | E79: V> 2 m/h | H79: Hauteur = | I79: =$E$3 -> 6.00m | T79: Tv = retard de prise(h) = | X79: 0.0h
C80: q <5 °C | D80: 2 + 1.25 V | E80: 4.1 + 0.2 V | H80: Température = | I80: =$E$17 -> 15.0°C | O80: Coefficient de Température : | T80: C2 = | U80: =(0.065*X79)+1 -> 1.0
C81: q = 15 °C | D81: 2 + 1.00 V | E81: 3.6 + 0.2 V | H81: Densité béton = | I81: =$E$19 -> 25kN/m3
C82: 15°C > q | D82: 2 + 0.85 V | E82: 3.3 + 0.2 V | H82: Vitesse V = | I82: =$E$13 -> 2.00m/h | S82: =(145-3*$Q$74)/100 -> 1.0
D84: Pmax = | E84: =IF(AD28="NON",(AD29*10),(AD28*10)) -> 37.0kN/m² | F84: =$E$84/10 -> 3.70t/m² | V84: Pmax | W84: =Q75*U80*S82*((0.48*Q76)+0.74) -> 42.5kN/m²
C86: Exemple : q = 15 °C , V = 3 m/ h, H= 6 m
C87: Pmax = 3.6 + 0.2 *3 =4.2 T/ m2 | O87: Exemple:

Sheet Calcul-Vent-Banches
A1: Calcul Stabilité en Vent | L1: Données
L2: Résultats
A3: ❶ | C3: hauteur Coffrage h = | D3: H= 3.00m | F3: ❻ | G3: =D3/2 -> H/2 = 1.50m | H3: Equation d'équilibre
A5: ❷ | C5: Hauteur Plot Hp = | D5: Hp= 0.50m | J5: =D20*D3 -> XC= 5.28kN
A7: ❸ | C7: Haut Tire-Pousse= | D7: Hti= 1.50m
AC8: Vitesse vent | AD8: 7 | AE8: 1 | AF8: Nature terrain | AG8: Angles Terrain
A9: ❹ | C9: Largeur Tire-Pousse = | D9: Lti= 1.50m | AC9: 20.0m/s | AD9: =INDEX(AC9:AC39,AD8) -> 26 | AF9: Support béton | AG9: 33
AC10: 21.0m/s | AF10: Remblai Déchets | AG10: 20
A11: ❺ | C11: Haut Sup Banche= | D11: =D3-D5-D7 -> Hs= 1.00m | AC11: 22.0m/s | AF11: Argiles /Sables | AG11: 25
G12: =CONCATENATE("Vérif (",ROUND(J15,2)," -",D13,") x ",D9,") - (",ROUND(D21,2),") x ((",D3,"/2) - ",D5,") = 0") -> Vérif (15,52 -12) x 1,5) - (5,28) x ((3/2) - 0,5) = 0 | AC12: 23.0m/s | AF12: Marnes | AG12: 30
A13: ❼ | C13: Poids Propre P= | D13: 12.0kN | AC13: 24.0m/s | AF13: Grès Calcaires | AG13: 35
AC14: 25.0m/s | AF14: Remblai calcaire | AG14: 40
A15: ❽ | C15: Vitesse du Vent : = | D15: =$AD$9 -> 26m/s | J15: =(((D20*D3)*((D3/2)-D5))/D9)+D13 -> YB=15.5kN | AC15: 26.0m/s
C16: Vent (en km/h)-> | D16: =D15*3.6 -> 93.60km/h | AC16: 27.0m/s
A17: ❾ | C17: Long d'influence = | D17: Lg= 2.43m | J17: =J15-D13 -> YC= 3.5kN | AC17: 28.0m/s
C18: q = pression -> | D18: =((($D$15^2)/1.63)*1.75) -> 726Pa | AC18: 29.0m/s
B19: Pression du au Vent / par (ml )= q x Long | AC19: 30.0m/s
C20: qW Vent (ml) = | D20: =1.75*(($D$15)^2)/(1/(1.225/2))*D17/1000 -> 1.76kN/m | AC20: 31.0m/s
A21: ❿ | B21: W = q Vent x H | D21: =D20*D3 -> = 5.28kN | AC21: 32.0m/s
AC22: 33.0m/s
AC23: 34.0m/s
AC24: 35.0m/s
AC25: 36.0m/s
AC26: 37.0m/s
AC27: 38.0m/s
AC28: 39.0m/s
AC29: 40.0m/s
AC30: 41.0m/s
B31: Poids du Plot = | D31: =((J5/TAN(H32*PI()/180))+J17)/10 -> Lest = 1.17tonnes | F31: Choix du Sol | H31: angle ϕ | AC31: 42.0m/s
D32: =((J5/TAN(H32*PI()/180))+J17)/1 -> Lest = 11.66kN | H32: =INDEX(AG9:AG14,AE8) -> 33° | AC32: 43.0m/s
G33: Tang ( ϕ )= | H33: =TAN(H32*PI()/180) -> 0.64941 | AC33: 44.0m/s
AC34: 45.0m/s
G35: Nature terrain | I35: Angles Terrain | AC35: 46.0m/s
G36: Support béton | I36: 33° | AC36: 47.0m/s
G37: Remblai Déchets | I37: 20° | AC37: 48.0m/s
G38: Argiles /Sables | I38: 25° | AC38: 49.0m/s
G39: Marnes | I39: 30° | AC39: 50.0m/s
G40: Grès Calcaires | I40: 35°
G41: Remblai calcaire | I41: 40°
A43: =(D31*10)-J17 -> YR = Lest - YC =8.13
A45: =J5 -> XC= 5.28kN

Sheet Calcul-Vent-Inverse
A1: Calcul Stabilité Vent SENS Inverse | L1: Données
L2: Résultats | P2: VENT SENS INSERSE
A3: ❶ | C3: hauteur Coffrage h = | D3: H= 3.00m | F3: ❻ | G3: =D3/2 -> H/2 = 1.50m | H3: Equation d'équilibre
A5: ❷ | C5: Hauteur Plot Hp = | D5: Hp= 0.50m | J5: =D20*D3 -> XC= 4.50kN
A7: ❸ | C7: Haut Tire-Pousse= | D7: Hti= 1.50m
AC8: Vitesse vent | AD8: 5 | AE8: 1
A9: ❹ | C9: Largeur Tire-Pousse = | D9: Lti= 1.50m | AC9: 20.0m/s | AD9: =INDEX(AC9:AC39,AD8) -> 24
AC10: 21.0m/s
A11: ❺ | C11: Haut Sup Banche= | D11: =D3-D5-D7 -> Hs= 1.00m | AC11: 22.0m/s
G12: =CONCATENATE("Vérif (",ROUND(J15,2)," -",D13,") x ",D9,") + (",ROUND(D21,2),") x ((",D3,"/2) - ",D5,") = 0") -> Vérif (9 -12) x 1,5) + (4,5) x ((3/2) - 0,5) = 0 | AC12: 23.0m/s
A13: ❼ | C13: Poids Propre P= | D13: 12.0kN | AC13: 24.0m/s
AC14: 25.0m/s
A15: ❽ | C15: Vitesse du Vent : = | D15: =$AD$9 -> 24m/s | J15: =(((-D20*D3)*((D3/2)-D5))/D9)+D13 -> YB=9.0kN | AC15: 26.0m/s
C16: Vent (en km/h)-> | D16: =D15*3.6 -> 86.40km/h | AC16: 27.0m/s
A17: ❾ | C17: Long d'influence = | D17: Lg= 2.43m | J17: =D13-J15 -> YC= 3.0kN | AC17: 28.0m/s
C18: q = pression -> | D18: =((($D$15^2)/1.63)*1.75) -> 618Pa | AC18: 29.0m/s
B19: Pression du au Vent / par (ml )= q x Long | AC19: 30.0m/s
C20: qW Vent (ml) = | D20: =1.75*(($D$15)^2)/(1/(1.225/2))*D17/1000 -> 1.50kN/m | H20: =IF(J15>I20,"Stabilité Assurée","Attention RENVERSEMENT") -> Stabilité Assurée | AC20: 31.0m/s
A21: ❿ | B21: W = q Vent x H | D21: =D20*D3 -> = 4.50kN | AC21: 32.0m/s
AC22: 33.0m/s
AC23: 34.0m/s
AC24: 35.0m/s
AC25: 36.0m/s
AC26: 37.0m/s
AC27: 38.0m/s
AC28: 39.0m/s
AC29: 40.0m/s
AC30: 41.0m/s
AC31: 42.0m/s
AC32: 43.0m/s
AC33: 44.0m/s
AC34: 45.0m/s
AC35: 46.0m/s
AC36: 47.0m/s
AC37: 48.0m/s
AC38: 49.0m/s
AC39: 50.0m/s

Sheet Tige-de-Serrage
A1: Calcul Tiges de Serrage
AC2: Mod: E
AA3: Cont Mpa | AC3: 200,000Mpa
A4: Hypothèses : | AA4: 500Mpa | AC4: 201,000Mpa
AA5: 600Mpa | AC5: 202,000Mpa
B6: Pression du Béton= | C6: 75.0Kpa | AA6: 700Mpa | AC6: 203,000Mpa
AA7: 800Mpa | AC7: 204,000Mpa
B8: Largeur d'influence = | C8: X = 1.10m | AA8: 900Mpa | AC8: 205,000Mpa
AA9: 1,000Mpa | AC9: 206,000Mpa
B10: Hauteur d'influence= | C10: Y = 1.50m | AA10: 1,100Mpa | AC10: 207,000Mpa
AC11: 208,000Mpa
B12: Surface d'influence= | C12: =C8*C10 -> 1.65m² | AC12: 209,000Mpa
AC13: 210,000Mpa
B14: Effort de traction ( N ) = | C14: =C6*C12 -> 123.8kN | L14: Module de Young (Mpa) E =→ | O14: 200,000.0Mpa | AA14: epsi | AB14: Force | AC14: Diam 15 | AD14: Diam 20 | AE14: Diam 26,5 | AG14: =B32 -> 15 | AH14: =B33 -> 20 | AI14: =B34 -> 26.5
AA15: 0mm/m | AB15: 0kN | AC15: =(AG15/$O$14)*1000 -> 0.00mm/m | AD15: 0.00mm/m | AE15: 0.00mm/m | AG15: =AB15*1000/$C$32 -> 0Mpa | AH15: =AG15*1000/$C$32 -> 0Mpa | AI15: =AH15*1000/$C$32 -> 0Mpa
B16: Contrainte limite ( fy )= | C16: 900.0Mpa | AA16: 1mm/m | AB16: 50kN | AC16: 1.41mm/m | AD16: 0.80mm/m | AE16: 0.45mm/m | AG16: 283Mpa | AH16: =AB16*1000/$C$33 -> 159Mpa | AI16: =AB16*1000/$C$34 -> 91Mpa
AA17: 2mm/m | AB17: 100kN | AC17: 2.83mm/m | AD17: 1.59mm/m | AE17: 0.91mm/m | AG17: 566Mpa | AH17: =AB17*1000/$C$33 -> 318Mpa | AI17: =AB17*1000/$C$34 -> 181Mpa
AA18: 3mm/m | AB18: 150kN | AC18: 4.24mm/m | AD18: 2.39mm/m | AE18: 1.36mm/m | AG18: 849Mpa | AH18: =AB18*1000/$C$33 -> 477Mpa | AI18: =AB18*1000/$C$34 -> 272Mpa
V19: =O14*1 -> 200000 | AA19: 4mm/m | AB19: 200kN | AC19: 5.66mm/m | AD19: 3.18mm/m | AE19: 1.81mm/m | AG19: 1,132Mpa | AH19: =AB19*1000/$C$33 -> 637Mpa | AI19: =AB19*1000/$C$34 -> 363Mpa
AA20: 5mm/m | AB20: 250kN | AC20: 7.07mm/m | AD20: 3.98mm/m | AE20: 2.27mm/m | AG20: 1,415Mpa | AH20: =AB20*1000/$C$33 -> 796Mpa | AI20: =AB20*1000/$C$34 -> 453Mpa
B22: Coeff. sécurité (γQ)= | C22: 1.5
B24: Section (Mini) = | C24: =$C$22*($C$14*1000)/$C$16 -> 206mm²
B25: =IF(C24<C32,1,MATCH(C24,C32:C34,1)+1) -> 2 | C25: =INDEX(A32:A34,B25) -> 23.0mm
A26: Diamètre nominal = | C26: =IF(B25>3,"Pas Tige dispo ",CONCATENATE("φ ",C25," mm")) -> φ 23 mm
A28: Diamètre des tiges disponibles:
A29: Diamètre | B29: Diamètre | C29: Section
A30: nominal | B30: du noyau
A31: mm | B31: mm | C31: mm²
A32: 17 | B32: 15 | C32: =B32^(2)*PI()/4 -> 177mm²
A33: 23 | B33: 20 | C33: =B33^(2)*PI()/4 -> 314mm²
A34: 30 | B34: 26.5 | C34: =B34^(2)*PI()/4 -> 552mm²

Sheet Lam-Colle-calcul
A1: RESISTANCE A LA FLEXION LAMELLE COLLE | I1: Retour Menu
A3: Moment fléchissant (MF) | B3: kN.m | C3: 5.53 | I3: Données
A4: Hauteur poutre (h) | B4: mm | C4: 205 | I4: Résultats
A5: Largeur poutre (b) | B5: mm | C5: 75 | Z5: =(2.38-($C4/250))*(1+($C3/(12*$C4))) -> 1.56
A6: sm,d | B6: N/mm² | C6: =C3*1000000/(C4^2)*6/C5 -> 10.53 | Z6: =(2.38-($C4/250))*(1+($C3/(6*$C4))) -> 1.57
A10: fm,k | B10: N.mm² | C10: 22.0 | I10: =I13 -> 10.5 | J10: =IF(I10<K10,"<",">") -> < | K10: =I14 -> 12.5 | L10: (N/mm²)
A11: kmod | C11: 0.8
A12: gM | C12: 1.3
A13: fm,d | B13: N/mm² | C13: =C10*C11/C12 -> 13.5 | I13: =C6 -> 10.5 | K13: =C6/C13/C14/C15/C16 -> 84%
A14: kh (coef de hauteur) | C14: 1.00 | I14: =C13*C14*C15*C16 -> 12.5
A15: kls (effet système) | C15: 1.10 | I15: (N/mm²)
A16: kcrit (déversement latéral) | C16: 0.84

Sheet Tableaux Lamellé-Collé
A1: Caractéristiques | B1: Symbole | D1: C14 | E1: C16 | F1: C18 | G1: C22 | H1: C24 | I1: C27 | J1: C30 | K1: C35 | L1: C40 | P1: RETOUR MENU
A2: Flexion | B2: fm,k | D2: 14 | E2: 16 | F2: 18 | G2: 22 | H2: 24 | I2: 27 | J2: 30 | K2: 35 | L2: 40 | N2: N/mm²
A3: Traction axiale | B3: ft,0,k | D3: 8 | E3: 10 | F3: 11 | G3: 13 | H3: 14 | I3: 16 | J3: 18 | K3: 21 | L3: 24 | N3: N/mm²
A4: Traction transversale | B4: ft,90,k | D4: 0.3 | E4: 0.3 | F4: 0.3 | G4: 0.3 | H4: 0.4 | I4: 0.4 | J4: 0.4 | K4: 0.4 | L4: 0.4 | N4: N/mm²
A5: Compression axiale | B5: fc,0,k | D5: 16 | E5: 17 | F5: 18 | G5: 20 | H5: 21 | I5: 232 | J5: 23 | K5: 25 | L5: 26 | N5: N/mm²
A6: Compression transversale | B6: fc,90,k | D6: 4.3 | E6: 4.6 | F6: 4.8 | G6: 5.1 | H6: 5.3 | I6: 5.6 | J6: 5.7 | K6: 6 | L6: 6.3 | N6: N/mm²
A7: Cisaillement | B7: fv,k | D7: 1.7 | E7: 1.8 | F7: 2 | G7: 2.4 | H7: 2.5 | I7: 2.8 | J7: 3 | K7: 3.4 | L7: 3.8 | N7: N/mm²
A8: Module moyen d'élasticité axial | B8: E0,moy | D8: 7 | E8: 8 | F8: 9 | G8: 10 | H8: 11 | I8: 12 | J8: 12 | K8: 13 | L8: 14 | N8: kN/mm²
A9: Module d'élasticité axial au fractile 5% | B9: E0,0.5 | D9: 4.7 | E9: 5.4 | F9: 6 | G9: 6.7 | H9: 7.4 | I9: 8 | J9: 8 | K9: 8.7 | L9: 9.4 | N9: kN/mm²
A10: Masse volumique moyenne | B10: rmoy | D10: 350 | E10: 370 | F10: 380 | G10: 410 | H10: 420 | I10: 450 | J10: 460 | K10: 480 | L10: 500 | N10: kg/m3
A12: Caractéristiques | B12: Symbole | D12: GL24h | E12: GL28h | F12: GL32h | G12: GL36h | I12: GL24c | J12: GL28c | K12: GL32c | L12: GL36c
A13: Flexion | B13: fm,k | D13: 24 | E13: 28 | F13: 32 | G13: 36 | I13: 24 | J13: 28 | K13: 32 | L13: 36 | N13: N/mm²
A14: Traction axiale | B14: ft,0,k | D14: 16.5 | E14: 19.5 | F14: 22.5 | G14: 26 | I14: 14 | J14: 16.5 | K14: 19.5 | L14: 22.5 | N14: N/mm²
A15: Traction transversale | B15: ft,90,k | D15: 0.4 | E15: 0.45 | F15: 0.5 | G15: 0.6 | I15: 0.35 | J15: 0.4 | K15: 0.45 | L15: 0.5 | N15: N/mm²
A16: Compression axiale | B16: fc,0,k | D16: 24 | E16: 26.5 | F16: 29 | G16: 31 | I16: 21 | J16: 24 | K16: 26.5 | L16: 29 | N16: N/mm²
A17: Compression transversale | B17: fc,90,k | D17: 2.7 | E17: 3 | F17: 3.3 | G17: 3.6 | I17: 2.4 | J17: 2.7 | K17: 3 | L17: 3.3 | N17: N/mm²
A18: Cisaillement | B18: fv,k | D18: 2.7 | E18: 3.2 | F18: 3.8 | G18: 4.3 | I18: 2.2 | J18: 2.7 | K18: 3.2 | L18: 3.8 | N18: N/mm²
A19: Module moyen d'élasticité axial | B19: E0,moy | D19: 11.6 | E19: 12.6 | F19: 13.7 | G19: 14.7 | I19: 11.6 | J19: 12.6 | K19: 13.7 | L19: 14.7 | N19: kN/mm²
A20: Module d'élasticité axial au fractile 5% | B20: E0,0.5 | D20: 9.4 | E20: 10.2 | F20: 11.1 | G20: 11.9 | I20: 9.4 | J20: 10.2 | K20: 11.1 | L20: 11.9 | N20: kN/mm²
A21: Masse volumique moyenne | B21: rmoy | D21: 440 | E21: 480 | F21: 520 | G21: 560 | I21: 420 | J21: 460 | K21: 500 | L21: 540 | N21: kg/m3
A23: Caractéristiques | B23: Symbole | D23: D30 | E23: D35 | F23: D40 | G23: D50 | H23: D60 | I23: D70
A24: Flexion | B24: fm,k | D24: 30 | E24: 35 | F24: 40 | G24: 50 | H24: 60 | I24: 70 | N24: N/mm²
A25: Traction axiale | B25: ft,0,k | D25: 18 | E25: 21 | F25: 24 | G25: 30 | H25: 36 | I25: 42 | N25: N/mm²
A26: Traction transversale | B26: ft,90,k | D26: 0.6 | E26: 0.6 | F26: 0.6 | G26: 0.6 | H26: 0.7 | I26: 0.9 | N26: N/mm²
A27: Compression axiale | B27: fc,0,k | D27: 23 | E27: 25 | F27: 26 | G27: 29 | H27: 32 | I27: 34 | N27: N/mm²
A28: Compression transversale | B28: fc,90,k | D28: 8 | E28: 8.4 | F28: 8.8 | G28: 9.7 | H28: 10.5 | I28: 13.5 | N28: N/mm²
A29: Cisaillement | B29: fv,k | D29: 3 | E29: 3.4 | F29: 3.8 | G29: 4.6 | H29: 5.3 | I29: 6 | N29: N/mm²
A30: Module moyen d'élasticité axial | B30: E0,moy | D30: 10 | E30: 10 | F30: 11 | G30: 14 | H30: 17 | I30: 20 | N30: kN/mm²
A31: Module d'élasticité axial au fractile 5% | B31: E0,0.5 | D31: 8 | E31: 8.7 | F31: 9.4 | G31: 11.8 | H31: 14.3 | I31: 16.8 | N31: kN/mm²
A32: Masse volumique moyenne | B32: rmoy | D32: 650 | E32: 680 | F32: 720 | G32: 790 | H32: 840 | I32: 1090 | N32: kg/m3

Sheet Feuil1
